bitfinex/quotes_SOLUSD_20250508
["timestamp","ask_amount","ask_price","bid_price","bid_amount"]
[1746710220599,6.44828475,155.08,155.07,26.0]
[1746710220773,4.28368668,155.09,155.08,26.0]
[1746710221173,4.28368668,155.09,155.08,45.98712703]
[1746710221988,4.28368668,155.09,155.08,114.63677589]
[1746710222727,6.44666794,155.12,155.08,114.63677589]
[1746710222889,6.44666794,155.12,155.11,19.98712703]
[1746710224168,4.27276679,155.12,155.11,19.98712703]
[1746710224990,6.44629359,155.13,155.11,19.98712703]
[1746710225174,6.44629359,155.13,155.12,19.98712703]
[1746710226388,16.11317407,155.16,155.12,19.98712703]
[1746710226594,16.11317407,155.16,155.13,19.98712703]
[1746710227091,4.27253288,155.15,155.13,19.98712703]
[1746710227797,4.27253288,155.14,155.13,19.98712703]
[1746710227998,4.27253288,155.14,155.09,18.64964886]
[1746710228205,4.27253288,155.14,155.08,108.8]
[1746710228386,24.25965991,155.14,155.1,26.0]
[1746710228586,22.56172241,155.13,155.1,26.0]
[1746710229690,4.2660717,155.12,155.1,45.98712703]
[1746710229998,4.2660717,155.12,155.11,19.98712703]
[1746710230596,10.71269367,155.12,155.11,19.98712703]
[1746710230893,10.71269367,155.12,155.1,19.98712703]
[1746710231090,30.6998207,155.12,155.08,45.98712703]
[1746710231397,30.6998207,155.12,155.08,19.98712703]
[1746710231775,4.2660717,155.11,155.08,19.98712703]
[1746710232397,6.44745325,155.1,155.08,19.98712703]
[1746710232601,6.44745325,155.1,155.07,26.0]
[1746710232798,6.44745325,155.1,155.07,45.98712703]
[1746710232997,4.2660717,155.09,155.07,45.98712703]
[1746710234606,4.2660717,155.08,155.07,45.98712703]
[1746710234805,4.2660717,155.08,155.07,26.0]
[1746710234983,4.2660717,155.08,155.07,45.98712703]
[1746710236103,6.44703758,155.11,155.07,45.98712703]
[1746710236490,6.44703758,155.11,155.09,19.98712703]
[1746710236881,6.44662197,155.12,155.09,19.98712703]
[1746710237211,4.26779963,155.11,155.09,19.98712703]
[1746710238410,4.26779963,155.1,155.09,19.98712703]
[1746710238614,4.26779963,155.1,155.07,26.0]
[1746710238791,4.26779963,155.1,155.09,19.98712703]
[1746710240096,4.26779963,155.1,155.09,153.88464486]
[1746710240414,4.26779963,155.14,155.1,68.64964886]
[1746710240710,4.26779963,155.14,155.13,19.98712703]
[1746710241098,10.71359052,155.14,155.1,82.8]
[1746710241408,10.71359052,155.14,155.12,19.98712703]
[1746710241606,10.71359052,155.14,155.11,19.98712703]
[1746710241807,4.26779963,155.13,155.11,19.98712703]
[1746710242111,4.26779963,155.13,155.12,19.98712703]
[1746710243485,10.71400603,155.13,155.12,19.98712703]
[1746710247402,4.26779963,155.13,155.12,19.98712703]
[1746710248304,6.44537544,155.15,155.12,19.98712703]
[1746710248505,6.44537544,155.15,155.14,19.98712703]
[1746710249223,22.55839484,155.16,155.14,19.98712703]
[1746710249814,4.27843167,155.15,155.14,19.98712703]
[1746710250527,22.55839484,155.16,155.14,19.98712703]
[1746710251716,4.28062229,155.15,155.14,19.98712703]
[1746710251907,6.44579089,155.14,155.13,19.98712703]
[1746710252107,6.44579089,155.14,155.1,132.8]
[1746710252504,6.44579089,155.14,155.13,19.98712703]
[1746710253227,10.72608859,155.14,155.13,19.98712703]
[1746710254206,6.44579089,155.14,155.13,19.98712703]
[1746710254720,10.72384034,155.14,155.13,19.98712703]
[1746710255326,10.72384034,155.14,155.12,19.98712703]
[1746710255902,6.44579089,155.14,155.12,19.98712703]
[1746710256412,6.44579089,155.14,155.1,132.8]
[1746710256413,4.27670037,155.13,155.1,132.8]
[1746710256608,4.27670037,155.13,155.12,19.98712703]
[1746710260431,4.27670037,155.13,155.12,134.62390292]
[1746710260614,4.27670037,155.13,155.12,256.18390292]
[1746710260822,4.27670037,155.13,155.12,236.19677589]
[1746710261011,6.44500015,155.16,155.13,18.64964886]
[1746710261327,6.44500015,155.16,155.13,19.98712703]
[1746710261634,6.44500015,155.16,155.12,128.78712703]
[1746710261821,6.44579089,155.14,155.12,128.78712703]
[1746710262135,6.44579089,155.14,155.13,19.98712703]
[1746710262522,6.44579089,155.14,155.12,128.78712703]
[1746710263531,19.98712703,155.13,155.09,35.80712703]
[1746710263744,6.44703758,155.11,155.09,19.98712703]
[1746710263906,6.44703758,155.11,155.09,45.98712703]
[1746710264642,6.44703758,155.11,155.06,82.8]
[1746710264815,26.43416461,155.11,155.06,19.98712703]
[1746710265015,26.43416461,155.11,155.06,45.98712703]
[1746710265439,26.43416461,155.11,155.07,19.98712703]
[1746710265822,6.44786897,155.09,155.07,19.98712703]
[1746710266134,6.44786897,155.09,155.06,45.98712703]
[1746710266328,6.44786897,155.09,154.94,72.64454506]
[1746710266329,19.98712703,155.07,155.01,257.22]
[1746710266631,19.98712703,155.06,155.01,15.8]
[1746710266834,19.98712703,155.06,155.02,19.98712703]
[1746710267037,19.98712703,155.06,155.02,45.98712703]
[1746710267345,19.98712703,155.08,155.03,19.98712703]
[1746710267829,4.28556023,155.07,155.03,19.98712703]
[1746710268136,6.44911647,155.06,155.04,19.98712703]
[1746710268633,4.28556023,155.05,155.04,19.98712703]
[1746710269339,10.73509263,155.05,155.04,19.98712703]
[1746710269736,6.4495324,155.05,155.04,19.98712703]
[1746710270315,6.44870058,155.07,155.04,19.98712703]
[1746710270728,4.40082404,155.06,155.04,19.98712703]
[1746710271517,6.44870058,155.07,155.04,19.98712703]
[1746710272239,4.40062293,155.06,155.04,19.98712703]
[1746710272615,6.4495324,155.05,155.04,19.98712703]
[1746710273417,4.40062293,155.05,155.04,19.98712703]
[1746710275437,6.4492267,155.06,155.04,19.98712703]
[1746710275621,6.4492267,155.06,155.05,19.98712703]
[1746710276448,6.44828475,155.08,155.05,19.98712703]
[1746710277149,4.39229123,155.07,155.05,19.98712703]
[1746710277342,6.44911647,155.06,155.05,19.98712703]
[1746710278548,10.8414077,155.06,155.05,19.98712703]
[1746710282147,6.44828475,155.08,155.05,19.98712703]
[1746710282346,6.44828475,155.08,155.06,19.98712703]
[1746710282550,6.44828475,155.08,155.02,32.45069186]
[1746710282551,6.44828475,155.08,155.07,19.98712703]
[1746710282863,7.6249,155.13,155.07,19.98712703]
[1746710283030,7.6249,155.13,155.1,19.98712703]
[1746710283348,8.02418689,155.13,155.11,19.98712703]
[1746710283553,6.44638689,155.13,155.12,19.98712703]
[1746710284056,6.44579089,155.14,155.1,19.98712703]
[1746710284653,4.38870628,155.13,155.1,19.98712703]
[1746710284841,4.38870628,155.13,155.11,19.98712703]
[1746710285240,4.38870628,155.13,155.09,45.98712703]
[1746710285423,24.37583331,155.13,155.08,19.98712703]
[1746710285624,42.54739516,155.14,155.09,19.98712703]
[1746710285934,22.56026813,155.14,155.1,19.98712703]
[1746710286133,16.11447724,155.14,155.11,19.98712703]
[1746710286556,6.44537544,155.15,155.11,19.98712703]
[1746710286750,4.39122635,155.13,155.12,19.98712703]
[1746710287554,6.44537544,155.15,155.12,19.98712703]
[1746710287930,6.4462064,155.13,155.07,82.8]
[1746710288130,6.4462064,155.13,155.11,19.98712703]
[1746710288650,4.39190014,155.12,155.11,19.98712703]
[1746710289548,6.44588089,155.14,155.11,19.98712703]
[1746710289735,6.44496004,155.16,155.13,19.98712703]
[1746710289941,6.44496004,155.16,155.15,19.98712703]
[1746710290280,6.44496004,155.16,155.14,19.98712703]
[1746710290635,4.38999137,155.15,155.14,19.98712703]
[1746710291050,10.83536681,155.15,155.14,19.98712703]
[1746710291346,6.44537544,155.15,155.14,19.98712703]
[1746710291655,10.83509287,155.15,155.14,19.98712703]
[1746710292541,10.83509287,155.15,155.12,45.98712703]
[1746710293339,10.83509287,155.15,155.09,108.8]
[1746710293533,10.83509287,155.15,155.12,19.98712703]
[1746710293938,4.38971743,155.14,155.12,19.98712703]
[1746710294349,6.44537544,155.15,155.12,19.98712703]
[1746710295066,6.44537544,155.15,155.09,26.0]
[1746710295267,22.55736014,155.16,155.12,19.98712703]
[1746710296170,22.55736014,155.16,155.13,19.98712703]
[1746710296345,4.3972888,155.15,155.13,19.98712703]
[1746710297069,6.44579089,155.14,155.13,19.98712703]
[1746710297567,10.84307969,155.14,155.13,19.98712703]
[1746710298075,10.84307969,155.14,155.09,26.0]
[1746710298252,10.84307969,155.14,155.12,19.98712703]
[1746710298562,6.44579089,155.14,155.12,19.98712703]
[1746710298962,6.44579089,155.14,155.13,19.98712703]
[1746710300282,22.55736014,155.16,155.13,19.98712703]
[1746710301067,4.38854754,155.15,155.13,19.98712703]
[1746710301271,6.44496004,155.16,155.13,19.98712703]
[1746710302150,4.38493235,155.15,155.13,19.98712703]
[1746710302471,6.44579089,155.14,155.13,19.98712703]
[1746710303376,6.44496004,155.16,155.13,19.98712703]
[1746710304074,4.3833138,155.15,155.13,19.98712703]
[1746710304652,6.44579089,155.14,155.13,19.98712703]
[1746710305307,10.82910469,155.14,155.13,19.98712703]
[1746710306068,10.82910469,155.14,155.09,108.8]
[1746710306266,6.44579089,155.14,155.12,19.98712703]
[1746710307874,6.44496004,155.16,155.12,19.98712703]
[1746710308275,4.37428751,155.15,155.09,108.8]
[1746710308579,4.37428751,155.15,155.12,19.98712703]
[1746710308779,4.37428751,155.15,155.09,108.8]
[1746710308978,4.37428751,155.15,155.12,19.98712703]
[1746710309679,4.37428751,155.14,155.12,19.98712703]
[1746710310255,10.82048276,155.14,155.12,19.98712703]
[1746710310556,6.44619525,155.14,155.12,19.98712703]
[1746710311079,6.44619525,155.14,155.09,115.24780794]
[1746710311277,6.44496004,155.16,155.09,115.24780794]
[1746710311582,6.44496004,155.16,155.12,19.98712703]
[1746710311777,4.37305871,155.15,155.12,19.98712703]
[1746710312481,6.44579089,155.14,155.12,19.98712703]
[1746710312684,6.44579089,155.14,155.09,108.8]
[1746710312863,6.44579089,155.14,155.12,19.98712703]
[1746710313265,6.44579089,155.14,155.09,108.8]
[1746710313484,22.56026813,155.14,155.1,19.98712703]
[1746710313771,19.98712703,155.12,155.04,141.54712703]
[1746710314085,19.98712703,155.12,155.03,51.5973]
[1746710314086,19.98712703,155.1,155.02,98.58]
[1746710314284,22.56659353,155.1,155.07,19.98712703]
[1746710314783,4.37277082,155.09,155.07,19.98712703]
[1746710315390,4.37277082,155.09,155.08,19.98712703]
[1746710316178,4.37277082,155.09,155.05,26.0]
[1746710316378,4.37277082,155.09,155.08,19.98712703]
[1746710316379,10.82063979,155.09,155.08,19.98712703]
[1746710318388,4.37277082,155.09,155.08,19.98712703]
[1746710318885,6.44755955,155.1,155.08,19.98712703]
[1746710319082,6.44755955,155.1,155.09,19.98712703]
[1746710319762,6.44703758,155.11,155.08,19.98712703]
[1746710320390,4.38073188,155.1,155.08,19.98712703]
[1746710321188,4.38073188,155.09,155.08,19.98712703]
[1746710323067,10.82860085,155.09,155.05,26.0]
[1746710323382,10.82860085,155.09,155.08,19.98712703]
[1746710323777,4.38073188,155.09,155.08,19.98712703]
[1746710327286,10.82860085,155.09,155.08,19.98712703]
[1746710332497,10.82860085,155.09,155.05,26.0]
[1746710332696,10.82860085,155.09,155.08,19.98712703]
[1746710338607,26.94827329,155.09,155.06,19.98712703]
[1746710339195,4.38073188,155.08,155.05,26.0]
[1746710339505,4.38073188,155.08,155.04,19.98712703]
[1746710339706,4.38073188,155.07,155.02,26.0]
[1746710340077,19.98712703,155.06,154.99,82.8]
[1746710340404,22.57190764,155.06,155.01,19.98712703]
[1746710340606,42.55903467,155.06,155.02,19.98712703]
[1746710340982,22.57190764,155.06,155.02,19.98712703]
[1746710341183,4.39035921,155.05,155.02,19.98712703]
[1746710342109,6.4499484,155.04,155.02,19.98712703]
[1746710342283,10.84030761,155.04,155.02,19.98712703]
[1746710343582,4.39035921,155.03,155.02,19.98712703]
[1746710345503,10.84072365,155.03,155.02,19.98712703]
[1746710346211,10.84072365,155.03,154.99,26.0]
[1746710346212,10.84072365,155.03,155.01,19.98712703]
[1746710346716,6.45036444,155.03,155.01,19.98712703]
[1746710347617,6.4495324,155.05,155.02,19.98712703]
[1746710347792,6.4495324,155.05,155.04,19.98712703]
[1746710348286,6.4495324,155.05,155.03,19.98712703]
[1746710348617,4.38759903,155.04,155.03,19.98712703]
[1746710348789,10.83754743,155.04,155.03,19.98712703]
[1746710348988,4.38759903,155.04,155.03,19.98712703]
[1746710350359,6.44911647,155.06,155.03,19.98712703]
[1746710350616,6.44786897,155.09,155.05,19.98712703]
[1746710351085,26.434996,155.09,155.05,19.98712703]
[1746710351291,4.38979806,155.08,155.05,19.98712703]
[1746710351701,4.38979806,155.08,155.04,19.98712703]
[1746710352103,4.38979806,155.07,155.04,19.98712703]
[1746710352423,6.44911647,155.06,155.04,19.98712703]
[1746710353019,6.44911647,155.06,155.05,19.98712703]
[1746710353194,10.83891453,155.06,155.05,19.98712703]
[1746710359219,10.83891453,155.06,155.02,26.0]
[1746710359395,10.83891453,155.06,155.03,19.98712703]
[1746710359708,10.83891453,155.06,155.0,82.8]
[1746710359912,26.9617057,155.06,155.01,26.0]
[1746710360093,4.38979806,155.05,155.01,45.98712703]
[1746710360716,42.55903467,155.06,155.01,45.98712703]
[1746710360915,22.57190764,155.06,155.02,19.98712703]
[1746710361521,6.4499484,155.04,155.02,19.98712703]
[1746710362424,6.4499484,155.04,155.03,19.98712703]
[1746710363529,10.85950596,155.04,155.03,19.98712703]
[1746710366804,10.85950596,155.04,155.01,26.0]
[1746710367127,4.40955756,155.03,155.02,19.98712703]
[1746710368730,10.859922,155.03,155.02,19.98712703]
[1746710370028,10.859922,155.03,154.99,26.0]
[1746710370029,10.859922,155.03,155.01,19.98712703]
[1746710370331,4.40955756,155.02,155.01,19.98712703]
[1746710372129,10.8603381,155.02,155.01,19.98712703]
[1746710372335,46.97441649,155.02,154.96,82.8]
[1746710372630,46.97441649,155.02,154.96,26.0]
[1746710372851,26.98728946,155.02,154.98,19.98712703]
[1746710373121,22.5777319,155.02,154.99,19.98712703]
[1746710373711,4.41589038,155.01,154.99,19.98712703]
[1746710374430,6.4516129,155.0,154.96,26.0]
[1746710374804,6.4516129,155.0,154.98,19.98712703]
[1746710375509,4.4159831,154.99,154.98,19.98712703]
[1746710379740,10.86801226,154.99,154.98,19.98712703]
[1746710382110,1.6093,155.06,155.01,26.0]
[1746710382446,143.2558,155.08,155.05,19.98712703]
[1746710382447,6.44870058,155.07,155.05,19.98712703]
[1746710382615,6.44870058,155.07,155.04,19.98712703]
[1746710383220,6.44870058,155.07,155.05,19.98712703]
[1746710383416,6.44786897,155.09,155.06,19.98712703]
[1746710383639,6.44786897,155.09,155.07,19.98712703]
[1746710384449,6.44786897,155.09,155.08,19.98712703]
[1746710384617,6.44703758,155.11,155.08,19.98712703]
[1746710385012,6.44703758,155.11,155.04,45.98712703]
[1746710385339,6.44703758,155.11,155.08,19.98712703]
[1746710387543,6.44703758,155.11,155.09,19.98712703]
[1746710387752,6.44703758,155.11,155.1,19.98712703]
[1746710388523,22.56180003,155.13,155.1,19.98712703]
[1746710388733,6.4462064,155.13,155.1,19.98712703]
[1746710389943,6.4462064,155.13,155.09,19.98712703]
[1746710390253,6.4462064,155.13,155.1,19.98712703]
[1746710390625,22.56038714,155.14,155.1,19.98712703]
[1746710392261,22.56038714,155.14,155.07,26.0]
[1746710392433,19.98712703,155.12,155.07,26.0]
[1746710392632,22.56463154,155.11,155.07,45.98712703]
[1746710393756,42.55175857,155.11,155.07,19.98712703]
[1746710394433,22.56463154,155.11,155.07,19.98712703]
[1746710395255,4.35485904,155.1,155.08,19.98712703]
[1746710395630,4.35485904,155.1,155.09,19.98712703]
[1746710395854,10.80231229,155.1,155.09,19.98712703]
[1746710396029,4.35485904,155.1,155.09,19.98712703]
[1746710396225,6.44670323,155.12,155.09,19.98712703]
[1746710396445,6.44670323,155.12,155.11,19.98712703]
[1746710396660,6.44620164,155.14,155.11,19.98712703]
[1746710396840,6.44620164,155.14,155.12,19.98712703]
[1746710397438,4.35379841,155.13,155.12,19.98712703]
[1746710397745,10.80000481,155.13,155.12,19.98712703]
[1746710400254,10.80000481,155.13,155.1,26.0]
[1746710400436,10.80000481,155.13,155.11,19.98712703]
[1746710400954,4.35379841,155.12,155.11,19.98712703]
[1746710401341,10.80042038,155.12,155.11,19.98712703]
[1746710402131,10.79412099,155.12,155.11,19.98712703]
[1746710406136,4.34749902,155.12,155.11,19.98712703]
[1746710406548,6.44634787,155.13,155.11,19.98712703]
[1746710406757,6.44634787,155.13,155.12,19.98712703]
[1746710407267,6.44634787,155.13,155.11,19.98712703]
[1746710407470,10.790918,155.13,155.11,19.98712703]
[1746710407670,10.790918,155.13,155.12,19.98712703]
[1746710413483,4.34457013,155.13,155.12,19.98712703]
[1746710414474,6.44561103,155.15,155.12,19.98712703]
[1746710414673,16.11143877,155.17,155.14,19.98712703]
[1746710415261,6.44412939,155.18,155.14,19.98712703]
[1746710415775,4.3326688,155.17,155.14,19.98712703]
[1746710416281,6.44496004,155.16,155.15,19.98712703]
[1746710417079,10.77762884,155.16,155.15,19.98712703]
[1746710417578,6.44496004,155.16,155.15,19.98712703]
[1746710418779,6.44412939,155.18,155.15,19.98712703]
[1746710419172,6.44412939,155.18,155.13,26.0]
[1746710419486,6.44412939,155.18,155.15,19.98712703]
[1746710420177,6.44496004,155.16,155.15,19.98712703]
[1746710421283,6.44412939,155.18,155.15,19.98712703]
[1746710421781,6.44412939,155.18,155.13,26.0]
[1746710421953,6.44412939,155.18,155.15,19.98712703]
[1746710422787,22.55445288,155.18,155.13,26.0]
[1746710422961,4.3310656,155.17,155.15,19.98712703]
[1746710423666,4.3310656,155.16,155.15,19.98712703]
[1746710424580,22.55445288,155.18,155.15,19.98712703]
[1746710424794,22.55445288,155.18,155.17,19.98712703]
[1746710425280,6.44412939,155.18,155.16,19.98712703]
[1746710425458,6.44412939,155.18,155.16,13.10062906]
[1746710426598,22.55160594,155.2,155.17,19.98712703]
[1746710426800,6.44329896,155.2,155.12,19.98712703]
[1746710426959,6.44329896,155.2,155.17,19.98712703]
[1746710427477,6.44329896,155.2,155.18,19.98712703]
[1746710427861,4.34566065,155.19,155.17,19.98712703]
[1746710428290,6.44412188,155.19,155.14,32.44572674]
[1746710428465,6.44412188,155.19,155.18,19.98712703]
[1746710429983,10.7929417,155.19,155.18,19.98712703]
[1746710430161,4.34881982,155.19,155.18,19.98712703]
[1746710431964,6.44263873,155.22,155.18,19.98712703]
[1746710432282,19.98712703,155.25,155.14,15.72]
[1746710432471,19.98712703,155.24,155.2,19.98712703]
[1746710432971,4.33858781,155.23,155.2,19.98712703]
[1746710433171,4.33858781,155.23,155.21,19.98712703]
[1746710433774,4.33858781,155.22,155.21,19.98712703]
[1746710434163,10.78105656,155.22,155.21,19.98712703]
[1746710434662,6.44246875,155.22,155.21,19.98712703]
[1746710434863,6.44246875,155.22,155.2,19.98712703]
[1746710435392,4.33952625,155.21,155.2,19.98712703]
[1746710435988,6.44246875,155.22,155.2,19.98712703]
[1746710436175,6.44246875,155.22,155.19,19.98712703]
[1746710436485,4.33911415,155.21,155.2,19.98712703]
[1746710436866,4.33911415,155.21,155.19,19.98712703]
[1746710437086,4.33911415,155.21,155.17,26.0]
[1746710437288,24.32624118,155.21,155.17,26.0]
[1746710437585,24.32624118,155.21,155.17,45.98712703]
[1746710437786,19.98712703,155.21,155.17,45.98712703]
[1746710438463,6.44371415,155.19,155.17,45.98712703]
[1746710439485,6.44371415,155.19,155.14,15.72]
[1746710439486,4.33938669,155.18,155.14,15.72]
[1746710439785,4.33938669,155.18,155.16,19.98712703]
[1746710439987,4.33938669,155.18,155.15,26.0]
[1746710440188,4.33938669,155.18,155.16,19.98712703]
[1746710440383,36.09532651,155.21,155.16,45.98712703]
[1746710440384,10.78393138,155.17,155.16,45.98712703]
[1746710440985,10.78393138,155.17,155.16,26.0]
[1746710441285,10.78393138,155.17,155.16,45.98712703]
[1746710442895,10.78393138,155.17,155.16,26.0]
[1746710443072,10.78393138,155.17,155.16,45.98712703]
[1746710445095,10.78393138,155.17,155.16,19.98712703]
[1746710445299,10.78393138,155.17,155.14,15.72]
[1746710445477,10.78393138,155.17,155.16,19.98712703]
[1746710446007,4.33938669,155.17,155.16,102.78712703]
[1746710446202,6.44261683,155.22,155.16,118.17704751]
[1746710446512,6.44261683,155.22,155.21,19.98712703]
[1746710446703,6.44122383,155.25,155.21,19.98712703]
[1746710446903,6.44122383,155.25,155.22,19.98712703]
[1746710447287,6.44122383,155.25,155.16,124.18992048]
[1746710447623,6.44122383,155.25,155.22,19.98712703]
[1746710448297,6.44080896,155.26,155.22,19.98712703]
[1746710448601,6.44080896,155.26,155.24,19.98712703]
[1746710450110,6.44080896,155.26,155.2,26.43042599]
[1746710450417,6.44039415,155.27,155.23,19.98712703]
[1746710450778,6.44039415,155.27,155.24,19.98712703]
[1746710451198,6.44039415,155.27,155.25,19.98712703]
[1746710451910,6.44039415,155.27,155.2,26.0]
[1746710452092,6.44039415,155.27,155.23,19.98712703]
[1746710452808,22.54137953,155.27,155.23,19.98712703]
[1746710454808,42.52850656,155.27,155.23,19.98712703]
[1746710455717,19.98712703,155.26,155.19,82.8]
[1746710455888,19.98712703,155.25,155.21,19.98712703]
[1746710456087,19.98712703,155.25,155.2,19.98712703]
[1746710456301,19.98712703,155.24,155.19,102.78712703]
[1746710457409,22.54718803,155.23,155.19,102.78712703]
[1746710457919,22.54718803,155.23,155.2,19.98712703]
[1746710459112,4.3135922,155.22,155.2,19.98712703]
[1746710460122,22.54718803,155.23,155.2,19.98712703]
[1746710460327,42.53431506,155.23,155.16,91.74496044]
[1746710460498,19.98712703,155.2,155.15,19.98712703]
[1746710460904,19.98712703,155.21,155.16,19.98712703]
[1746710461514,19.98712703,155.21,155.17,19.98712703]
[1746710462126,6.44371415,155.19,155.17,19.98712703]
[1746710462623,6.44371415,155.19,155.16,19.98712703]
[1746710462997,4.31526919,155.18,155.16,19.98712703]
[1746710463207,4.31526919,155.18,155.15,19.98712703]
[1746710464222,4.31526919,155.17,155.15,19.98712703]
[1746710464418,6.44496004,155.16,155.14,26.0]
[1746710464929,6.44496004,155.16,155.15,19.98712703]
[1746710465147,6.44412939,155.18,155.15,19.98712703]
[1746710465439,6.44412939,155.18,155.16,19.98712703]
[1746710465932,4.3304525,155.17,155.16,19.98712703]
[1746710466320,4.3304525,155.17,155.14,26.0]
[1746710466638,6.44496004,155.16,155.14,26.0]
[1746710467340,4.3304525,155.15,155.14,26.0]
[1746710467715,4.3304525,155.15,155.14,45.98712703]
[1746710468939,6.44288383,155.21,155.17,26.0]
[1746710469414,6.44288383,155.21,155.19,19.98712703]
[1746710470129,4.33032738,155.2,155.19,19.98712703]
[1746710471715,4.33032738,155.2,155.19,39.97425406]
[1746710471939,4.33032738,155.2,155.19,129.21796821]
[1746710473125,16.09988089,155.29,155.23,26.0]
[1746710473314,16.09988089,155.29,155.25,19.98712703]
[1746710473516,16.09988089,155.29,155.26,19.98712703]
[1746710473712,6.43997939,155.28,155.26,19.98712703]
[1746710474645,22.53944557,155.29,155.26,19.98712703]
[1746710474845,22.53944557,155.29,155.25,19.98712703]
[1746710475545,19.98712703,155.28,155.2,98.5]
[1746710475715,19.98712703,155.24,155.16,6.6156]
[1746710475921,19.98712703,155.24,155.19,19.98712703]
[1746710476123,19.98712703,155.26,155.21,19.98712703]
[1746710476748,42.53141044,155.25,155.2,19.98712703]
[1746710477045,19.98712703,155.23,155.19,19.98712703]
[1746710477933,19.98712703,155.24,155.19,19.98712703]
[1746710478132,76.3317296,155.25,155.2,19.98712703]
[1746710478543,76.3317296,155.25,155.17,26.0]
[1746710478544,24.13848341,155.25,155.22,19.98712703]
[1746710479043,24.13848341,155.25,155.21,19.98712703]
[1746710479347,19.98712703,155.24,155.2,19.98712703]
[1746710479551,44.12561044,155.25,155.21,19.98712703]
[1746710480251,24.13848341,155.25,155.21,19.98712703]
[1746710480453,44.12561044,155.25,155.21,19.98712703]
[1746710483451,24.13848341,155.25,155.21,19.98712703]
[1746710483749,44.12561044,155.25,155.21,19.98712703]
[1746710483947,24.13848341,155.25,155.21,19.98712703]
[1746710484956,44.12561044,155.25,155.17,108.8]
[1746710485163,44.12561044,155.25,155.2,19.98712703]
[1746710485369,4.23579945,155.24,155.2,19.98712703]
[1746710485663,6.44205372,155.23,155.21,19.98712703]
[1746710486464,4.23579945,155.22,155.21,19.98712703]
[1746710487157,10.6782682,155.22,155.21,19.98712703]
[1746710487457,10.6782682,155.22,155.2,19.98712703]
[1746710488344,10.67868328,155.21,155.2,19.98712703]
[1746710488960,10.67868328,155.21,155.17,108.8]
[1746710489161,10.67868328,155.21,155.19,19.98712703]
[1746710489660,6.44288383,155.21,155.19,19.98712703]
[1746710489861,6.44288383,155.21,155.2,19.98712703]
[1746710490063,22.5467508,155.24,155.2,19.98712703]
[1746710490563,4.23839628,155.23,155.18,26.0]
[1746710490763,19.98712703,155.21,155.15,82.8]
[1746710491069,19.98712703,155.18,155.13,45.98712703]
[1746710491238,19.98712703,155.18,155.13,19.98712703]
[1746710491773,19.98712703,155.18,155.14,19.98712703]
[1746710491939,22.55590642,155.17,155.14,19.98712703]
[1746710492137,4.23676952,155.16,155.14,19.98712703]
[1746710493540,4.23676952,155.15,155.14,19.98712703]
[1746710494563,10.68214496,155.15,155.14,19.98712703]
[1746710495263,4.23676952,155.15,155.14,19.98712703]
[1746710495470,4.23676952,155.15,155.14,26.43291792]
[1746710495650,4.23676952,155.15,155.14,19.98712703]
[1746710496051,4.23676952,155.15,155.14,26.43291792]
[1746710496465,6.4431448,155.21,155.17,26.0]
[1746710496766,6.44246875,155.22,155.17,26.0]
[1746710496970,6.44246875,155.22,155.18,19.98712703]
[1746710497356,24.21623893,155.21,155.17,26.0]
[1746710497551,19.98712703,155.19,155.14,82.8]
[1746710497869,19.98712703,155.18,155.14,82.8]
[1746710498069,19.98712703,155.19,155.14,102.78712703]
[1746710498556,24.21623893,155.18,155.14,82.8]
[1746710498761,6.44454469,155.17,155.15,19.98712703]
[1746710499069,6.44454469,155.17,155.16,19.98712703]
[1746710499378,10.67365659,155.17,155.16,19.98712703]
[1746710499570,4.2291119,155.17,155.16,19.98712703]
[1746710500175,4.2291119,155.17,155.15,26.0]
[1746710500379,6.44414909,155.18,155.16,19.98712703]
[1746710500873,19.98712703,155.2,155.16,19.98712703]
[1746710501078,36.09512636,155.21,155.16,19.98712703]
[1746710501569,7.7428,155.13,154.96,50.0]
[1746710501748,44.64964886,155.11,155.01,19.98712703]
[1746710502065,19.98712703,155.03,154.97,19.98712703]
[1746710502251,19.98712703,155.02,154.94,6.1669]
[1746710502458,18.64964886,155.07,154.98,19.98712703]
[1746710502459,19.98712703,155.03,154.98,19.98712703]
[1746710502659,26.17992703,155.04,154.98,19.98712703]
[1746710502858,42.56340258,155.03,154.98,19.98712703]
[1746710503471,26.43749147,155.03,154.98,19.98712703]
[1746710504370,6.45007065,155.04,155.0,19.98712703]
[1746710504571,6.45007065,155.04,155.01,19.98712703]
[1746710505057,6.4495324,155.05,155.01,19.98712703]
[1746710505855,6.4495324,155.05,155.02,31.96613293]
[1746710506063,6.4495324,155.05,154.97,6.45266223]
[1746710506064,6.1928,155.08,155.04,31.96613293]
[1746710506445,6.44881981,155.07,155.04,31.96613293]
[1746710506981,6.44881981,155.07,155.03,31.96613293]
[1746710507269,6.44881981,155.07,155.02,31.96613293]
[1746710507446,6.44881981,155.07,155.03,31.96613293]
[1746710507953,6.44881981,155.07,155.04,31.96613293]
[1746710509251,6.44828475,155.08,155.04,31.96613293]